[Event "*** Titled Tuesday Blitz"]
[Site "Chess.com"]
[Date "2019.03.05"]
[Round "8"]
[White "Gabrielian_Artur"]
[Black "PocketPivot"]
[Result "0-1"]
[WhiteElo "2732"]
[BlackElo "2523"]
[TimeControl "180+2"]
[EndTime "14:59:02 PST"]
[Termination "PocketPivot won by resignation"]

1. e4 {[%clk 0:03:01.9]} 1... e6 {[%clk 0:03:00.9]} 2. d4 {[%clk 0:03:02.2]}
2... d5 {[%clk 0:03:01.3]} 3. Nd2 {[%clk 0:03:03.3]} 3... dxe4 {[%clk
0:03:02.1]} 4. Nxe4 {[%clk 0:03:04.3]} 4... Nd7 {[%clk 0:03:04]} 5. Nf3 {[%clk
0:03:03.6]} 5... Ngf6 {[%clk 0:03:04.2]} 6. Nxf6+ {[%clk 0:03:00.3]} 6... Nxf6
{[%clk 0:03:04.1]} 7. Be3 {[%clk 0:02:58.5]} 7... Bd6 {[%clk 0:03:00.9]} 8. Bd3
{[%clk 0:02:57.8]} 8... b6 {[%clk 0:03:01.9]} 9. Qe2 {[%clk 0:02:57]} 9... Bb7
{[%clk 0:02:56.3]} 10. O-O-O {[%clk 0:02:56.6]} 10... Qe7 {[%clk 0:02:56.8]} 11.
Ne5 {[%clk 0:02:52.8]} 11... O-O-O {[%clk 0:02:53.9]} 12. f4 {[%clk 0:02:50.2]}
12... Nd5 {[%clk 0:02:49.5]} 13. Rhf1 {[%clk 0:02:43]} 13... Nxe3 {[%clk
0:02:47.9]} 14. Qxe3 {[%clk 0:02:44.1]} 14... f6 {[%clk 0:02:49.6]} 15. Nf3
{[%clk 0:02:38.6]} 15... Rhe8 {[%clk 0:02:42.1]} 16. g3 {[%clk 0:02:21.8]} 16...
h6 {[%clk 0:02:34.9]} 17. Bg6 {[%clk 0:02:21.2]} 17... Rf8 {[%clk 0:02:30.7]}
18. Rfe1 {[%clk 0:02:22]} 18... f5 {[%clk 0:02:21.8]} 19. Ne5 {[%clk 0:02:15.8]}
19... Bxe5 {[%clk 0:02:07]} 20. Qxe5 {[%clk 0:02:09.1]} 20... Be4 {[%clk
0:01:35.6]} 21. Rxe4 {[%clk 0:01:44.8]} 21... fxe4 {[%clk 0:01:35.1]} 22. Bxe4
{[%clk 0:01:45.4]} 22... Rd6 {[%clk 0:01:07]} 23. Qb5 {[%clk 0:01:32.4]} 23...
Kb8 {[%clk 0:01:08.1]} 24. c3 {[%clk 0:01:14.6]} 24... g5 {[%clk 0:01:04.5]} 25.
Qa6 {[%clk 0:00:42.2]} 25... c6 {[%clk 0:01:01.4]} 26. fxg5 {[%clk 0:00:43.3]}
26... Qxg5+ {[%clk 0:00:46.8]} 27. Kb1 {[%clk 0:00:44.1]} 27... Rf2 {[%clk
0:00:35.5]} 28. a4 {[%clk 0:00:34]} 28... Qe3 {[%clk 0:00:21.9]} 29. Bc2 {[%clk
0:00:31.5]} 29... Qe2 {[%clk 0:00:19.3]} 30. Qxe2 {[%clk 0:00:27.9]} 30... Rxe2
{[%clk 0:00:21.2]} 31. h4 {[%clk 0:00:20.9]} 31... Rg2 {[%clk 0:00:21.5]} 32.
Rd3 {[%clk 0:00:21.6]} 32... e5 {[%clk 0:00:17.2]} 33. dxe5 {[%clk 0:00:13.2]}
33... Rxd3 {[%clk 0:00:19.1]} 34. Bxd3 {[%clk 0:00:13.9]} 34... Rxg3 {[%clk
0:00:20.9]} 35. Kc2 {[%clk 0:00:15.4]} 35... Kc7 {[%clk 0:00:21.6]} 36. h5
{[%clk 0:00:14.8]} 36... Kd7 {[%clk 0:00:22.2]} 37. Bf5+ {[%clk 0:00:15.1]}
37... Ke7 {[%clk 0:00:23]} 38. b4 {[%clk 0:00:14.6]} 38... Rg5 {[%clk
0:00:22.4]} 39. Bg6 {[%clk 0:00:15.8]} 39... Rxe5 {[%clk 0:00:23.5]} 40. Kd3
{[%clk 0:00:17.4]} 40... Kd6 {[%clk 0:00:24.7]} 41. Kd4 {[%clk 0:00:17.7]} 41...
Re1 {[%clk 0:00:25.6]} 42. Kd3 {[%clk 0:00:16.8]} 42... a5 {[%clk 0:00:25.8]}
43. bxa5 {[%clk 0:00:17]} 43... bxa5 {[%clk 0:00:27.7]} 44. Kd4 {[%clk
0:00:18.1]} 44... Ra1 {[%clk 0:00:25.6]} 45. Bc2 {[%clk 0:00:18.4]} 45... Ra2
{[%clk 0:00:26.8]} 46. Bb3 {[%clk 0:00:19.6]} 46... Rh2 {[%clk 0:00:26.8]} 47.
Bf7 {[%clk 0:00:20.4]} 47... Rh4+ {[%clk 0:00:28.5]} 48. Kd3 {[%clk 0:00:19.1]}
48... Rxa4 {[%clk 0:00:29.3]} 49. c4 {[%clk 0:00:19.6]} 49... Ra3+ {[%clk
0:00:30.2]} 50. Kd4 {[%clk 0:00:20.8]} 50... Rh3 {[%clk 0:00:31.8]} 51. c5+
{[%clk 0:00:21.8]} 51... Ke7 {[%clk 0:00:32.2]} 52. Bg6 {[%clk 0:00:21.9]} 52...
a4 {[%clk 0:00:33.5]} 53. Bf5 {[%clk 0:00:17.7]} 53... a3 {[%clk 0:00:27.7]} 0-1

[Event "*** Titled Tuesday Blitz"]
[Site "Chess.com"]
[Date "2019.03.05"]
[Round "8"]
[White "CzechmVIII"]
[Black "StanislavNovikov"]
[Result "0-1"]
[WhiteElo "2128"]
[BlackElo "2631"]
[TimeControl "180+2"]
[EndTime "14:59:15 PST"]
[Termination "StanislavNovikov won by resignation"]

1. e4 {[%clk 0:03:01.9]} 1... c5 {[%clk 0:03:00]} 2. Nf3 {[%clk 0:02:59.2]} 2...
e6 {[%clk 0:03:01.2]} 3. Nc3 {[%clk 0:02:59.3]} 3... a6 {[%clk 0:03:01.7]} 4. g3
{[%clk 0:02:59.3]} 4... b5 {[%clk 0:03:02.1]} 5. d4 {[%clk 0:02:59.9]} 5... cxd4
{[%clk 0:03:01.8]} 6. Nxd4 {[%clk 0:03:00.2]} 6... Bb7 {[%clk 0:03:03.3]} 7. Bg2
{[%clk 0:03:01.2]} 7... Qc7 {[%clk 0:03:04.1]} 8. O-O {[%clk 0:03:00]} 8... Nc6
{[%clk 0:03:02.9]} 9. Nxc6 {[%clk 0:02:48.7]} 9... Qxc6 {[%clk 0:03:01.9]} 10.
Re1 {[%clk 0:02:42.5]} 10... Bb4 {[%clk 0:02:51.7]} 11. a4 {[%clk 0:02:21]}
11... bxa4 {[%clk 0:02:46]} 12. Qg4 {[%clk 0:01:55.6]} 12... Kf8 {[%clk
0:02:13]} 13. Qe2 {[%clk 0:01:17.5]} 13... Ne7 {[%clk 0:02:07.3]} 14. Be3 {[%clk
0:01:05.1]} 14... f6 {[%clk 0:01:42.3]} 15. Red1 {[%clk 0:01:03.8]} 15... Bxc3
{[%clk 0:01:41.1]} 16. bxc3 {[%clk 0:01:04]} 16... Kf7 {[%clk 0:01:33.9]} 17.
Rab1 {[%clk 0:00:53.7]} 17... Qc8 {[%clk 0:01:22.2]} 18. Rd4 {[%clk 0:00:43.6]}
18... Bc6 {[%clk 0:01:22.3]} 19. Rdb4 {[%clk 0:00:28.5]} 19... h5 {[%clk
0:00:47.4]} 20. e5 {[%clk 0:00:28.8]} 20... Bxg2 {[%clk 0:00:43.8]} 21. Kxg2
{[%clk 0:00:30.7]} 21... fxe5 {[%clk 0:00:30.3]} 22. Qf3+ {[%clk 0:00:23.7]}
22... Nf5 {[%clk 0:00:21.5]} 23. Bg5 {[%clk 0:00:20.3]} 23... Qc6 {[%clk
0:00:19.2]} 24. Qxc6 {[%clk 0:00:15.7]} 24... dxc6 {[%clk 0:00:21.1]} 25. Rb7+
{[%clk 0:00:16.7]} 25... Kg6 {[%clk 0:00:22.3]} 26. h4 {[%clk 0:00:17.6]} 26...
Rhc8 {[%clk 0:00:19.7]} 27. Ra1 {[%clk 0:00:15.6]} 27... Rab8 {[%clk 0:00:19.5]}
28. Rxb8 {[%clk 0:00:16.7]} 28... Rxb8 {[%clk 0:00:20.7]} 29. Rxa4 {[%clk
0:00:18.4]} 29... Rb6 {[%clk 0:00:21.4]} 30. Kf3 {[%clk 0:00:17.7]} 30... Nd6
{[%clk 0:00:21.4]} 31. Be3 {[%clk 0:00:17.3]} 31... Rb2 {[%clk 0:00:22.1]} 32.
Rxa6 {[%clk 0:00:18]} 32... e4+ {[%clk 0:00:23.4]} 33. Kg2 {[%clk 0:00:18.3]}
33... Nf5 {[%clk 0:00:24.5]} 34. Bc5 {[%clk 0:00:15.5]} 34... Rxc2 {[%clk
0:00:25]} 35. Rxc6 {[%clk 0:00:16.5]} 35... e3 {[%clk 0:00:23]} 36. Kf1 {[%clk
0:00:15.1]} 36... Rxf2+ {[%clk 0:00:23.2]} 37. Ke1 {[%clk 0:00:15.5]} 37... Rg2
{[%clk 0:00:21.4]} 38. Rxe6+ {[%clk 0:00:15]} 38... Kf7 {[%clk 0:00:22.6]} 39.
Re5 {[%clk 0:00:13.9]} 39... Kf6 {[%clk 0:00:23.8]} 40. Re8 {[%clk 0:00:11]}
40... Rxg3 {[%clk 0:00:23.6]} 41. c4 {[%clk 0:00:10.9]} 41... Rh3 {[%clk
0:00:18.8]} 42. Ke2 {[%clk 0:00:09]} 42... Rxh4 {[%clk 0:00:17.8]} 43. Bxe3
{[%clk 0:00:09.7]} 43... Nxe3 {[%clk 0:00:18.4]} 44. Rxe3 {[%clk 0:00:09.6]}
44... Rxc4 {[%clk 0:00:19.2]} 45. Rf3+ {[%clk 0:00:10.3]} 45... Kg5 {[%clk
0:00:20.3]} 46. Rg3+ {[%clk 0:00:11.3]} 46... Rg4 {[%clk 0:00:20.8]} 47. Ra3
{[%clk 0:00:11.3]} 47... Rf4 {[%clk 0:00:20.8]} 48. Ra5+ {[%clk 0:00:10.3]}
48... Kh6 {[%clk 0:00:21.2]} 49. Ke3 {[%clk 0:00:10.4]} 49... Rf8 {[%clk
0:00:21.5]} 50. Ra6+ {[%clk 0:00:09.5]} 50... g6 {[%clk 0:00:22.6]} 51. Ra7
{[%clk 0:00:10.4]} 51... h4 {[%clk 0:00:22.6]} 52. Ra5 {[%clk 0:00:09.1]} 52...
g5 {[%clk 0:00:23.2]} 53. Ke2 {[%clk 0:00:08]} 53... Kh5 {[%clk 0:00:23.8]} 54.
Ra3 {[%clk 0:00:08.9]} 54... Rf5 {[%clk 0:00:22.2]} 55. Ra8 {[%clk 0:00:09.6]}
55... h3 {[%clk 0:00:22.8]} 56. Rh8+ {[%clk 0:00:09.8]} 56... Kg4 {[%clk
0:00:23.9]} 57. Rh7 {[%clk 0:00:10.4]} 57... Kg3 {[%clk 0:00:24.5]} 0-1

[Event "*** Titled Tuesday Blitz"]
[Site "Chess.com"]
[Date "2019.03.05"]
[Round "8"]
[White "IakovUlivar"]
[Black "Stephenzinho"]
[Result "1-0"]
[WhiteElo "2513"]
[BlackElo "2401"]
[TimeControl "180+2"]
[EndTime "14:59:25 PST"]
[Termination "IakovUlivar won by resignation"]

1. e4 {[%clk 0:03:01.9]} 1... e5 {[%clk 0:03:00.4]} 2. Nc3 {[%clk 0:02:59.3]}
2... Nc6 {[%clk 0:03:01.5]} 3. g3 {[%clk 0:02:58.3]} 3... Bc5 {[%clk 0:03:00.6]}
4. Bg2 {[%clk 0:02:58.5]} 4... d6 {[%clk 0:03:02.2]} 5. d3 {[%clk 0:02:57.7]}
5... Be6 {[%clk 0:03:03.7]} 6. Nf3 {[%clk 0:02:51.1]} 6... Nf6 {[%clk
0:02:56.3]} 7. O-O {[%clk 0:02:50.3]} 7... Qd7 {[%clk 0:02:54.4]} 8. Na4 {[%clk
0:02:46.8]} 8... Bh3 {[%clk 0:02:50.8]} 9. Bg5 {[%clk 0:02:18.7]} 9... Ng8
{[%clk 0:02:24.8]} 10. c3 {[%clk 0:02:08.5]} 10... h6 {[%clk 0:02:22.5]} 11.
Nxc5 {[%clk 0:02:09.9]} 11... dxc5 {[%clk 0:02:22.8]} 12. Be3 {[%clk 0:02:11.5]}
12... b6 {[%clk 0:02:23.8]} 13. d4 {[%clk 0:02:07.7]} 13... Bxg2 {[%clk
0:02:17.1]} 14. Kxg2 {[%clk 0:02:07.8]} 14... cxd4 {[%clk 0:02:18]} 15. cxd4
{[%clk 0:02:09.7]} 15... exd4 {[%clk 0:02:16.8]} 16. Nxd4 {[%clk 0:02:04.1]}
16... O-O-O {[%clk 0:01:58.6]} 17. Nf5 {[%clk 0:01:31.1]} 17... Qxd1 {[%clk
0:01:35.2]} 18. Rfxd1 {[%clk 0:01:33]} 18... Rxd1 {[%clk 0:01:35.5]} 19. Rxd1
{[%clk 0:01:34.1]} 19... g6 {[%clk 0:01:32.6]} 20. Nd4 {[%clk 0:01:31.9]} 20...
Nge7 {[%clk 0:01:29.9]} 21. Nxc6 {[%clk 0:01:18.2]} 21... Nxc6 {[%clk
0:01:31.8]} 22. f4 {[%clk 0:01:19]} 22... h5 {[%clk 0:01:04]} 23. Kf3 {[%clk
0:01:19.1]} 23... Re8 {[%clk 0:00:43.8]} 24. h3 {[%clk 0:01:17.6]} 24... a6
{[%clk 0:00:23.6]} 25. b3 {[%clk 0:00:58]} 25... Nb4 {[%clk 0:00:18]} 26. a3
{[%clk 0:00:43.5]} 26... Nc6 {[%clk 0:00:15.5]} 27. b4 {[%clk 0:00:41.7]} 27...
b5 {[%clk 0:00:10.4]} 28. Rd5 {[%clk 0:00:40.2]} 28... Kb7 {[%clk 0:00:08]} 29.
e5 {[%clk 0:00:35.8]} 29... Nd8 {[%clk 0:00:05.5]} 30. g4 {[%clk 0:00:27.4]}
30... hxg4+ {[%clk 0:00:07.4]} 31. hxg4 {[%clk 0:00:29.3]} 31... Nc6 {[%clk
0:00:06.3]} 32. Ke4 {[%clk 0:00:17.8]} 32... Kc8 {[%clk 0:00:06]} 33. f5 {[%clk
0:00:14.5]} 33... gxf5+ {[%clk 0:00:06.8]} 34. gxf5 {[%clk 0:00:16.4]} 34... Rh8
{[%clk 0:00:06.2]} 35. e6 {[%clk 0:00:14.6]} 35... fxe6 {[%clk 0:00:06.5]} 36.
fxe6 {[%clk 0:00:16.5]} 36... Rh4+ {[%clk 0:00:07.5]} 37. Bf4 {[%clk 0:00:14.1]}
37... Ne7 {[%clk 0:00:05]} 38. Rg5 {[%clk 0:00:15.5]} 38... Nc6 {[%clk
0:00:05.6]} 39. Rg8+ {[%clk 0:00:15.3]} 39... Kb7 {[%clk 0:00:07.1]} 40. Rg7
{[%clk 0:00:13.3]} 40... a5 {[%clk 0:00:06.4]} 41. e7 {[%clk 0:00:08.4]} 41...
Nxe7 {[%clk 0:00:04.8]} 42. Rxe7 {[%clk 0:00:08.9]} 42... axb4 {[%clk
0:00:06.4]} 43. axb4 {[%clk 0:00:10.8]} 43... Kb6 {[%clk 0:00:05.8]} 44. Re6+
{[%clk 0:00:05.6]} 44... c6 {[%clk 0:00:06.5]} 45. Ke5 {[%clk 0:00:05.9]} 45...
Rh5+ {[%clk 0:00:07.2]} 46. Kd4 {[%clk 0:00:05.3]} 46... Rd5+ {[%clk 0:00:07.6]}
47. Kc3 {[%clk 0:00:05.8]} 47... Rd1 {[%clk 0:00:09.5]} 48. Be3+ {[%clk
0:00:06.6]} 48... Kc7 {[%clk 0:00:09.7]} 49. Re7+ {[%clk 0:00:07.1]} 49... Kc8
{[%clk 0:00:09.4]} 50. Bc5 {[%clk 0:00:07.4]} 50... Rc1+ {[%clk 0:00:09.6]} 51.
Kd4 {[%clk 0:00:08.3]} 51... Rc4+ {[%clk 0:00:11.1]} 52. Ke5 {[%clk 0:00:09.2]}
52... Kd8 {[%clk 0:00:09.7]} 53. Rh7 {[%clk 0:00:09]} 53... Rc1 {[%clk
0:00:10.3]} 54. Kd6 {[%clk 0:00:09.8]} 54... Rd1+ {[%clk 0:00:09.8]} 55. Kxc6
{[%clk 0:00:10.9]} 1-0

[Event "*** Titled Tuesday Blitz"]
[Site "Chess.com"]
[Date "2019.03.05"]
[Round "8"]
[White "Chessialist"]
[Black "Andrei_Belozerov"]
[Result "0-1"]
[WhiteElo "2489"]
[BlackElo "2497"]
[TimeControl "180+2"]
[EndTime "14:59:37 PST"]
[Termination "Andrei_Belozerov won by resignation"]

1. c4 {[%clk 0:03:01.9]} 1... c6 {[%clk 0:02:54]} 2. Nc3 {[%clk 0:03:02.4]} 2...
d5 {[%clk 0:02:54.8]} 3. e3 {[%clk 0:03:04.1]} 3... Nf6 {[%clk 0:02:55]} 4. Qc2
{[%clk 0:03:05.8]} 4... g6 {[%clk 0:02:51.6]} 5. Nf3 {[%clk 0:03:06.6]} 5... Bg7
{[%clk 0:02:52.4]} 6. b3 {[%clk 0:03:07.8]} 6... O-O {[%clk 0:02:41.4]} 7. Bb2
{[%clk 0:03:08.2]} 7... Re8 {[%clk 0:02:40.1]} 8. Be2 {[%clk 0:03:05.2]} 8...
Bf5 {[%clk 0:02:38.4]} 9. d3 {[%clk 0:03:04.7]} 9... e5 {[%clk 0:02:39.5]} 10.
O-O {[%clk 0:03:00.8]} 10... d4 {[%clk 0:02:32.7]} 11. Ne4 {[%clk 0:02:36.7]}
11... Bxe4 {[%clk 0:02:04.9]} 12. dxe4 {[%clk 0:02:38.6]} 12... dxe3 {[%clk
0:02:00.3]} 13. fxe3 {[%clk 0:02:40.5]} 13... Nbd7 {[%clk 0:01:59.8]} 14. c5
{[%clk 0:02:31.7]} 14... Qe7 {[%clk 0:01:51.8]} 15. b4 {[%clk 0:02:31.9]} 15...
a5 {[%clk 0:01:49.4]} 16. a3 {[%clk 0:02:32.9]} 16... Ng4 {[%clk 0:01:49.6]} 17.
Qb3 {[%clk 0:02:29.4]} 17... Bh6 {[%clk 0:01:50.1]} 18. Ng5 {[%clk 0:02:22.1]}
18... Bxg5 {[%clk 0:01:26.3]} 19. Bxg4 {[%clk 0:02:21.8]} 19... Nf6 {[%clk
0:01:27.3]} 20. Bf3 {[%clk 0:02:19.1]} 20... Red8 {[%clk 0:01:24.7]} 21. Rad1
{[%clk 0:02:17.7]} 21... axb4 {[%clk 0:01:24.2]} 22. axb4 {[%clk 0:02:17.9]}
22... h5 {[%clk 0:01:23]} 23. g3 {[%clk 0:02:02.4]} 23... Bh6 {[%clk 0:01:15.8]}
24. Kg2 {[%clk 0:02:02.2]} 24... Bg5 {[%clk 0:01:03.4]} 25. Be2 {[%clk
0:01:40.8]} 25... Ng4 {[%clk 0:00:53.5]} 26. Bxg4 {[%clk 0:01:21.1]} 26... hxg4
{[%clk 0:00:54.5]} 27. Rd6 {[%clk 0:01:22.8]} 27... Rxd6 {[%clk 0:00:33.2]} 28.
cxd6 {[%clk 0:01:23.3]} 28... Qd7 {[%clk 0:00:33.1]} 29. Bxe5 {[%clk 0:01:21.9]}
29... Re8 {[%clk 0:00:34.1]} 30. Bf4 {[%clk 0:01:22.4]} 30... Bf6 {[%clk
0:00:29.2]} 31. Qc4 {[%clk 0:00:49.6]} 31... g5 {[%clk 0:00:29.1]} 32. e5 {[%clk
0:00:47.2]} 32... gxf4 {[%clk 0:00:29.3]} 33. exf4 {[%clk 0:00:47.2]} 33... Bxe5
{[%clk 0:00:27.6]} 34. fxe5 {[%clk 0:00:48]} 34... Rxe5 {[%clk 0:00:29]} 35. Rf6
{[%clk 0:00:47.6]} 35... Kg7 {[%clk 0:00:25.2]} 36. Qf4 {[%clk 0:00:48.8]} 36...
Re2+ {[%clk 0:00:22]} 37. Kf1 {[%clk 0:00:49.5]} 37... Re6 {[%clk 0:00:22.5]}
38. Rxe6 {[%clk 0:00:42.9]} 38... fxe6 {[%clk 0:00:23.2]} 39. Qxg4+ {[%clk
0:00:43.7]} 39... Kf7 {[%clk 0:00:24.5]} 40. Qf4+ {[%clk 0:00:43.7]} 40... Kg7
{[%clk 0:00:25.6]} 41. Qe5+ {[%clk 0:00:44.4]} 41... Kf7 {[%clk 0:00:26.3]} 42.
g4 {[%clk 0:00:45.7]} 42... b6 {[%clk 0:00:27.4]} 43. g5 {[%clk 0:00:47]} 43...
Kg6 {[%clk 0:00:28.2]} 44. h4 {[%clk 0:00:47.5]} 44... c5 {[%clk 0:00:24.6]} 45.
Kf2 {[%clk 0:00:44]} 45... cxb4 {[%clk 0:00:24.8]} 46. Kg3 {[%clk 0:00:45.3]}
46... Qa4 {[%clk 0:00:22.2]} 47. Qf6+ {[%clk 0:00:45.5]} 47... Kh7 {[%clk
0:00:23]} 48. g6+ {[%clk 0:00:46.3]} 48... Kh6 {[%clk 0:00:24.5]} 49. Kf4 {[%clk
0:00:24.6]} 49... b3+ {[%clk 0:00:22.7]} 50. Ke5 {[%clk 0:00:25.8]} 50... Qb5+
{[%clk 0:00:23.5]} 51. Kxe6 {[%clk 0:00:26.9]} 51... b2 {[%clk 0:00:23]} 52.
Qh8+ {[%clk 0:00:16.2]} 52... Kxg6 {[%clk 0:00:23.6]} 53. d7 {[%clk 0:00:16.1]}
53... Qe2+ {[%clk 0:00:22]} 54. Kd6 {[%clk 0:00:16.2]} 54... Qd3+ {[%clk
0:00:22.8]} 55. Kc7 {[%clk 0:00:17.3]} 55... b1=Q {[%clk 0:00:23.5]} 56. Qg8+
{[%clk 0:00:17.9]} 56... Kh6 {[%clk 0:00:22.8]} 57. Qh8+ {[%clk 0:00:17.1]}
57... Kg6 {[%clk 0:00:23.2]} 58. Qg8+ {[%clk 0:00:18]} 58... Kf5 {[%clk
0:00:24.5]} 59. Qh7+ {[%clk 0:00:17.6]} 59... Kg4 {[%clk 0:00:24.2]} 60. Qxd3
{[%clk 0:00:17.9]} 60... Qxd3 {[%clk 0:00:24.8]} 0-1

[Event "*** Titled Tuesday Blitz"]
[Site "Chess.com"]
[Date "2019.03.05"]
[Round "8"]
[White "ahkashefi2800"]
[Black "TBergh98"]
[Result "1-0"]
[WhiteElo "2268"]
[BlackElo "2372"]
[TimeControl "180+2"]
[EndTime "14:59:44 PST"]
[Termination "ahkashefi2800 won by resignation"]

1. d4 {[%clk 0:03:01.9]} 1... d6 {[%clk 0:03:01.3]} 2. Nf3 {[%clk 0:03:02.4]}
2... Nf6 {[%clk 0:03:02.2]} 3. Bg5 {[%clk 0:03:01.9]} 3... Nbd7 {[%clk
0:02:54.6]} 4. Nc3 {[%clk 0:03:00.9]} 4... c6 {[%clk 0:02:54.1]} 5. e4 {[%clk
0:03:01.7]} 5... Qa5 {[%clk 0:02:55]} 6. Qd2 {[%clk 0:03:01.2]} 6... e5 {[%clk
0:02:55.9]} 7. Bc4 {[%clk 0:02:58.5]} 7... b5 {[%clk 0:02:47.4]} 8. dxe5 {[%clk
0:02:52.2]} 8... dxe5 {[%clk 0:02:40.9]} 9. Bxf6 {[%clk 0:02:14.2]} 9... bxc4
{[%clk 0:02:30.1]} 10. Bh4 {[%clk 0:01:59]} 10... Bb4 {[%clk 0:02:22.7]} 11. O-O
{[%clk 0:01:59.6]} 11... f6 {[%clk 0:02:21.6]} 12. Rfd1 {[%clk 0:01:48.8]} 12...
O-O {[%clk 0:02:17.9]} 13. Qe2 {[%clk 0:01:41.3]} 13... Nb6 {[%clk 0:02:09.8]}
14. Nb1 {[%clk 0:01:34.7]} 14... Bg4 {[%clk 0:02:04.9]} 15. c3 {[%clk
0:01:32.7]} 15... Bc5 {[%clk 0:02:04]} 16. Nbd2 {[%clk 0:01:32.3]} 16... Qb5
{[%clk 0:01:52.3]} 17. h3 {[%clk 0:01:31.9]} 17... Bh5 {[%clk 0:01:51.7]} 18.
Rab1 {[%clk 0:01:19.9]} 18... Rfd8 {[%clk 0:01:42.6]} 19. g4 {[%clk 0:00:54]}
19... Bf7 {[%clk 0:01:42.3]} 20. b4 {[%clk 0:00:51.6]} 20... Be7 {[%clk
0:01:33.3]} 21. Nf1 {[%clk 0:00:41.7]} 21... Rd3 {[%clk 0:01:28.9]} 22. Rxd3
{[%clk 0:00:08.9]} 22... cxd3 {[%clk 0:01:30.8]} 23. Qd1 {[%clk 0:00:09.6]}
23... Rd8 {[%clk 0:01:23]} 24. Rb2 {[%clk 0:00:05.1]} 24... Nc4 {[%clk
0:01:21.7]} 25. Rb3 {[%clk 0:00:04.8]} 25... Nd6 {[%clk 0:01:15]} 26. c4 {[%clk
0:00:03.2]} 26... Bxc4 {[%clk 0:01:13.5]} 27. N3d2 {[%clk 0:00:03.4]} 27... Bf7
{[%clk 0:01:05.5]} 28. Rc3 {[%clk 0:00:03.7]} 28... Nc4 {[%clk 0:01:01.5]} 29.
Nxc4 {[%clk 0:00:04.3]} 29... Bxc4 {[%clk 0:01:03.4]} 30. Nd2 {[%clk 0:00:05.3]}
30... Bf7 {[%clk 0:01:01.6]} 31. a3 {[%clk 0:00:06.1]} 31... c5 {[%clk
0:00:57.8]} 32. bxc5 {[%clk 0:00:06.5]} 32... Bxc5 {[%clk 0:00:59.7]} 33. Nf3
{[%clk 0:00:02.5]} 33... Bb6 {[%clk 0:00:49.4]} 34. Kg2 {[%clk 0:00:02.4]} 34...
g5 {[%clk 0:00:36.4]} 35. Bg3 {[%clk 0:00:02.6]} 35... Bc4 {[%clk 0:00:26.7]}
36. a4 {[%clk 0:00:03.8]} 36... Qa6 {[%clk 0:00:27.5]} 37. Ra3 {[%clk
0:00:02.8]} 37... Bc5 {[%clk 0:00:26.5]} 38. Ra1 {[%clk 0:00:03.5]} 38... Bb4
{[%clk 0:00:24.6]} 39. Nd2 {[%clk 0:00:02.6]} 39... Be6 {[%clk 0:00:21.7]} 40.
Nf1 {[%clk 0:00:03]} 40... d2 {[%clk 0:00:22.2]} 41. Ne3 {[%clk 0:00:03.8]}
41... Qd3 {[%clk 0:00:22.2]} 42. Qf3 {[%clk 0:00:03.9]} 42... Kf7 {[%clk
0:00:20.8]} 43. Bxe5 {[%clk 0:00:03.6]} 43... Be7 {[%clk 0:00:18.1]} 44. Rd1
{[%clk 0:00:04.5]} 44... Bc8 {[%clk 0:00:12.9]} 45. Bxf6 {[%clk 0:00:05]} 45...
Bxf6 {[%clk 0:00:13.1]} 46. e5 {[%clk 0:00:06.9]} 46... Rd7 {[%clk 0:00:11.1]}
47. Qxf6+ {[%clk 0:00:07.5]} 47... Kg8 {[%clk 0:00:12.5]} 48. Qxg5+ {[%clk
0:00:08.3]} 48... Rg7 {[%clk 0:00:12.5]} 49. Qh5 {[%clk 0:00:04.5]} 49... Bb7+
{[%clk 0:00:13.8]} 50. Kh2 {[%clk 0:00:03.9]} 50... Qd7 {[%clk 0:00:13.4]} 51.
e6 {[%clk 0:00:04.6]} 51... Qd6+ {[%clk 0:00:13.2]} 52. Kg1 {[%clk 0:00:05.4]}
52... Re7 {[%clk 0:00:13.3]} 53. Nf5 {[%clk 0:00:05.8]} 53... Qxe6 {[%clk
0:00:13.6]} 54. Qg5+ {[%clk 0:00:06.9]} 54... Kf8 {[%clk 0:00:12.3]} 55. Qxe7+
{[%clk 0:00:07.9]} 55... Qxe7 {[%clk 0:00:13.6]} 56. Nxe7 {[%clk 0:00:09.8]}
56... Kxe7 {[%clk 0:00:15.3]} 57. Rxd2 {[%clk 0:00:10.8]} 57... Bf3 {[%clk
0:00:16.2]} 58. a5 {[%clk 0:00:11.6]} 58... Bc6 {[%clk 0:00:17.3]} 59. Kh2
{[%clk 0:00:13.5]} 59... Bd5 {[%clk 0:00:18.6]} 60. Rxd5 {[%clk 0:00:14.2]} 1-0